{"text_format":"1","workbook":"xlsx","n_sheets":3,"sheets":["Лист1","Лист2","Лист3"],"not_rendered":{"charts":0,"images":0,"macros":1,"external_links":0,"defined_names":1,"comments":0,"pivot_tables":0},"unopened":[],"bounds":{"document_bytes":16777216,"sheet_cells":100000,"rows_first":2000,"rows_last":500,"rows_between":2000,"halvings":0,"cell_chars":16384,"cell_head_chars":4096},"cells_cut":0,"cells_raw":0,"read":"whole","date_system":"1900"}

{"sheet":"Лист1","index":0,"n_rows":57,"n_cols":9,"rows_kept":57,"cut":false,"hidden":false,"merged":[[45,1,45,2],[46,1,46,2],[56,4,56,6],[48,4,48,6],[49,4,49,6],[50,4,50,6],[51,4,51,6],[52,4,52,6],[53,4,53,6],[54,4,54,6],[55,4,55,6]]}
["Скрыть","Позиция","кол-во","1 мес.","1 мес.","4 мес","6 мес.","8 мес.","12 мес."]
["х","ПАКЕТ «ВСЁ ВКЛЮЧЕНО»",null,3450,{"$f":"IF(C2=0,0,C2*D2)","v":0},{"$f":"IF(C2=0,0*6,C2*4*D2)","v":0},{"$f":"IF(C2=0,0*6,D2*6*C2)","v":0},{"$f":"IF(C2=0,0*8,C2*D2*8)","v":0},{"$f":"IF(C2=0,0*8,C2*D2*12)","v":0}]
[null,"ПАКЕТ «ВСЁ ВКЛЮЧЕНО+»",null,5350,0,0,0,0,0]
["х","ПАКЕТ «ВСЁ ВКЛЮЧЕНО+» VIP",null,7500,0,0,0,0,0]
[null,"ПАКЕТ «ДОПОЛНИТЕЛЬНЫЙ»",null,1050,0,0,0,0,0]
[null,"  приоритет в рубрике 1-го порядка для одинарного баннера в рубрике",null,1150,0,0,0,0,0]
[null,"  приоритет в рубрике 2-го порядка для одинарного баннера в рубрике",null,2300,0,0,0,0,0]
[null,"  приоритет в рубрике 3-го порядка для одинарного баннера в рубрике",null,3450,0,0,0,0,0]
[null,"  приоритет в рубрике 4-го порядка для одинарного баннера в рубрике",null,4600,0,0,0,0,0]
["х","  приоритет в рубрике 5-го порядка для одинарного баннера в рубрике",null,5750,0,0,0,0,0]
[null,"  приоритет в рубрике 6-го порядка для одинарного баннера в рубрике",null,6900,0,0,0,0,0]
[null,"  приоритет в рубрике 7-го порядка для одинарного баннера в рубрике",null,8050,0,0,0,0,0]
[null,"  приоритет в рубрике 8-го порядка для одинарного баннера в рубрике",null,9200,0,0,0,0,0]
["х","  приоритет в рубрике 9-го порядка для одинарного баннера в рубрике",null,10350,0,0,0,0,0]
[null,"  приоритет в рубрике 1-го порядка для двойного баннера в рубрике",null,2300,0,0,0,0,0]
[null,"  приоритет в рубрике 2-го порядка для двойного баннера в рубрике",null,4600,0,0,0,0,0]
[null,"  приоритет в рубрике 3-го порядка для двойного баннера в рубрике",null,6900,0,0,0,0,0]
["х","  приоритет в рубрике 4-го порядка для двойного баннера в рубрике",null,9200,0,0,0,0,0]
[null,"  приоритет в рубрике 5-го порядка для двойного баннера в рубрике",null,11500,0,0,0,0,0]
[null,"Объявление в рубрике (рубрика без рекламодателей)",null,1325,0,0,0,0,0]
[null,"Объявление в рубрике (рубрика с рекламодателями)",null,2000,0,0,0,0,0]
[null,"Объявление 1-го порядка в рубрике",null,2875,0,0,0,0,0]
[null,"Объявление 2-го порядка в рубрике",null,4025,0,0,0,0,0]
[null,"Объявление 3-го порядка в рубрике",null,5175,0,0,0,0,0]
[null,"Логотип на карте во всех масштабах в рубрике 1-го уровня",null,3375,0,0,0,0,0]
[null,"Логотип на карте в детальных масштабах во всех рубриках",null,5625,0,0,0,0,0]
[null,"Контекстный модуль под окном справочника",null,3800,0,0,0,0,0]
[null,"Рекламный модуль в окне карты",null,6750,0,0,0,0,0]
[null,"Рекламный модуль под окном справочника",null,9000,0,0,0,0,0]
[null,"РЕКЛАМНЫЙ МОДУЛЬ НА СТАРТОВОЙ ЗАСТАВКЕ",null,11250,0,0,0,0,0]
[null,"РЕКЛАМНЫЙ МОДУЛЬ НА ФИНАЛЬНОЙ ЗАСТАВКЕ",null,5750,0,0,0,0,0]
[null,"БАННЕР-НЕБОСКРЕБ",null,12950,0,0,0,0,0]
[null,"РЕКЛАМА В ПЕЧАТИ",null,3000,0,0,0,0,0]
[null,"СТАРТ В ОН-ЛАЙН ВЕРСИИ",null,6525,0,0,0,0,0]
[null,"Медийно-контекстный баннер",null,5350,0,0,0,0,0]
[null,"Рекламная ссылка",null,250,0,0,0,0,0]
[null,"Подключение одинарного баннера к рубрике",null,100,0,0,0,0,0]
[null,"Подключение двойного баннера к рубрике",null,200,0,0,0,0,0]
[null,"Дополнительная рубрика свыше 5 бесплатных",null,375,0,0,0,0,0]
[null,"Дополнительный макет для одинарного баннера",null,600,0,0,0,0,0]
[null,"Дополнительный макет для двойного баннера",null,1200,0,0,0,0,0]
[null,"Выгодные покупки с 2ГИС к фирме",null,1000,0,0,0,0,0]
[null,"Логотип на карте во всех масштабах в одной рубрике",null,1125,0,0,0,0,0]
[null,"Рекламная статья (до 120 Кб)",null,3925,0,0,0,0,0]
["х","ИТОГО",{"$f":"SUBTOTAL(9,C2:C44)","v":0},{"$f":"SUBTOTAL(9,E2:E44)","v":0},{"$f":"SUBTOTAL(9,F2:F44)","v":0},0,0,0,0]
["х","Скидка",null,null,{"$f":"IF(E45>$E$57,E45*$H$57,IF(E45>$E$56,E45*$H$56,IF(E45>$E$55,E45*$H$55,IF(E45>$E$54,E45*$H$54,IF(E45>$E$53,E45*$H$53,IF(E45>$E$52,E45*$H$52,IF(E45>$E$51,E45*$H$51,IF(E45<$E$51,0,0))))))))","v":0},{"$f":"IF(F45>$E$57,F45*$H$57,IF(F45>$E$56,F45*$H$56,IF(F45>$E$55,F45*$H$55,IF(F45>$E$54,F45*$H$54,IF(F45>$E$53,F45*$H$53,IF(F45>$E$52,F45*$H$52,IF(F45>$E$51,F45*$H$51,IF(F45<$E$51,0,0))))))))","v":0},0,0,0]
["х","Сумма с учетом скидки",null,null,{"$f":"E45-E46","v":0},{"$f":"F45-F46","v":0},0,0,0]
[]
[null,null,null,null,"Размер первого платежа",null,null,"% скидки"]
[null,null,null,null,"меньше 13800р.",null,null,0]
[null,null,null,null,13800,null,null,0.05]
[null,null,null,null,18400,null,null,0.08]
[null,null,null,null,27600,null,null,0.1]
[null,null,null,null,36800,null,null,0.12]
[null,null,null,null,46000,null,null,0.15]
[null,null,null,null,55200,null,null,0.17]
[null,null,null,null,64400,null,null,0.2]

{"sheet":"Лист2","index":1,"n_rows":0,"n_cols":0,"rows_kept":0,"cut":false,"hidden":false,"merged":[]}

{"sheet":"Лист3","index":2,"n_rows":0,"n_cols":0,"rows_kept":0,"cut":false,"hidden":false,"merged":[]}